Cogmind - Beta 14 @@@ ROGUE MODE // 2024.12.28 @ 14:40:29 Player: Derk Result: Destroyed by Y-54 Guardian with Gatling Laser Performance ------------- Evolutions (0) 0 Regions Visited (4) 800 Robots Destroyed (24) 120 Value Destroyed (441) 441 Prototype IDs (0) 0 Alien Tech Used (0) 0 Bonus (77) 77 TOTAL SCORE: 1438 Bonus ------- Follower Combat Kills 77 Cogmind --------- Core Integrity 0/250 Matter 257/300 Energy 270/290 System Corruption 0% Temperature Warm (165) Movement Treading (240) Ox1 Location -7/Recycling Parts ------- > --- POWER (1) -------- Improved Deuterium Engine > --- PROPULSION (2) --- Light Treads Light Treads > --- UTILITY (2) ------ High-capacity Storage Unit > --- WEAPON (2) ------- Improved EM Pulse Cannon Light Assault Rifle > --- INVENTORY (20) --- Subdweller Power Source Subdweller Power Source Subdweller Power Source Wheel Subdweller Monowheel Coolant Injector Experimental Sensor Array Cobbler Unit Subdweller Laser Makeshift Laser Light Assault Rifle Subdweller Machine Gun Grenade Launcher Subdweller Shrapnel Launcher Flail Peak State ------------ > --- POWER ------------ Improved Deuterium Engine > --- PROPULSION ------- Wheel Wheel > --- UTILITY ---------- High-capacity Storage Unit Weapon Cycler > --- WEAPON ----------- Makeshift Laser Improved EM Pulse Cannon > --- INVENTORY -------- Light Ion Engine Subdweller Power Source Subdweller Power Source Subdweller Power Source Light Treads Light Treads Subdweller Monowheel Experimental Sensor Array Powered Armor Cobbler Unit Subdweller Laser Light Assault Rifle Light Assault Rifle Light Assault Rifle Subdweller Machine Gun Grenade Launcher Subdweller Shrapnel Launcher Mining Laser [Rating: 22] Favorites ----------- Power Light Angular Momentum Engine Engine Light Angular Momentum Engine Propulsion Light Treads Treads Light Treads Wheel Wheel Utility High-capacity Storage Unit Device Seismic Detector Storage High-capacity Storage Unit Protection Reflective Plating Weapon Assault Rifle Energy Gun Makeshift Laser Energy Cannon Improved EM Pulse Cannon Ballistic Gun Assault Rifle Launcher Grenade Launcher Special Weapon Mining Laser Build | -11 -10 -10 -10 -7 ------- Run | Yrd Mat Min Sub Rec Slots Evolved . | . . . . . Power . | . . . . . Propulsion . | . . . . . Utility . | . . . . . Weapon . | . . . . . Parts Attached 46 | 7 13 4 4 18 Power 6 | 1 1 2 . 2 Engine 6 | 1 1 2 . 2 Core . | . . . . . Reactor . | . . . . . Propulsion 11 | 2 3 . . 6 Treads 5 | . 2 . . 3 Leg . | . . . . . Wheel 6 | 2 1 . . 3 Hover . | . . . . . Flight . | . . . . . Utility 11 | 2 1 . 3 5 Device 6 | 1 . . 2 3 Storage 3 | 1 1 . 1 . Processor . | . . . . . Hackware . | . . . . . Protection 2 | . . . . 2 Artifact . | . . . . . Weapon 18 | 2 8 2 1 5 Energy Gun 2 | . 1 . . 1 Energy Cannon 2 | . . . . 2 Ballistic Gun 8 | 2 3 1 . 2 Ballistic Cannon . | . . . . . Launcher 2 | . . 1 1 . Special Weapon 4 | . 4 . . . Impact Weapon . | . . . . . Slashing Weapon . | . . . . . Piercing Weapon . | . . . . . Special Melee Weapon . | . . . . . Unidentified Prototypes . | . . . . . Parts Lost 12 | . 3 . . 9 Power 2 | . 1 . . 1 Propulsion 3 | . 1 . . 2 Utility 4 | . . . . 4 Weapon 3 | . 1 . . 2 Highest Loss Streak 5 | . 3 . . 5 To Critical Strikes . | . . . . . Average Slot Usage (%) 98 | . 100 100 97 93 Engine 13 | . 14 14 14 13 Treads 23 | . 14 28 28 1 Wheel 4 | . 13 . . 26 Device 12 | . 14 14 12 7 Storage 13 | . 14 14 12 14 Ballistic Gun 21 | . 18 28 17 16 Launcher 4 | . . . 10 . Special Weapon 1 | . 8 . . . Peak Build Rating 22 | 7 8 13 15 22 Average Rating 11 | 5 7 9 13 17 On Entrance 8 | . 7 8 13 15 Naked Turns . | . . . . . Heaviest Build 59 | 12 47 53 55 59 Greatest Support 40 | 20 40 40 40 20 Greatest Overweight (x) 2 | . 1 1 1 2 Average Overweight (x) 1 | . . 1 . 2 Largest Inventory Capacity 20 | 8 20 20 20 20 Average Capacity 18 | 7 17 20 18 20 Most Carried 20 | 8 13 18 20 20 Average Carried 14 | 5 8 13 16 18 Final Capacity 20 | 8 20 20 20 20 Final Carried 20 | 8 13 18 20 16 Class Distribution -------------------- 100% | Mutant Dominant Class ---------------- Mutant | -10/Materials Mutant | -10/Mines Mutant | -10/Subcaves Mutant | -7/Recycling Resources | -11 -10 -10 -10 -7 ----------- Run | Yrd Mat Min Sub Rec Matter Collected 1101 | 279 175 118 404 125 Remotely . | . . . . . Salvage Created 546 | 120 125 147 79 75 Parts 42 | 10 15 9 7 1 Haulers Intercepted . | . . . . . Recyclers Shooed . | . . . . . Parts Field Recycled . | . . . . . Retrieved Matter . | . . . . . Parts Self-Destructed 17 | . . . 17 . Prevented . | . . . . . Kills | -11 -10 -10 -10 -7 ------- Run | Yrd Mat Min Sub Rec Combat Hostiles Destroyed 16 | . 5 5 5 1 Guns 10 | . 5 3 1 1 AOE 6 | . . 2 4 . Classes Destroyed 8 | 2 3 . 2 1 Tunneler 3 | 3 . . . . Recycler 2 | 1 . 1 . . Turret 2 | . . . 2 . Watcher 1 | . 1 . . . Swarmer 11 | . 3 5 3 . Grunt 2 | . 2 . . . Sentry 1 | . . . . 1 Subdweller 2 | . . . 2 . Best Kill Streak 3 | 3 3 3 2 1 Combat Bots Only 3 | . 3 3 2 1 Max Kills in Single Turn 2 | 1 1 2 1 1 Gunslinging . | . . . . . Exploded 2 | . . 2 1 . Melee . | . . . . . Uniques/NPCs Destroyed . | . . . . . Combat | -11 -10 -10 -10 -7 -------- Run | Yrd Mat Min Sub Rec Hostile Shots Fired 267 | . 26 18 19 204 Missed 91 | . 10 5 10 66 Damage Taken 1513 | . 246 127 84 1056 Core 257 | . 34 19 9 195 Absorbed by Shields . | . . . . . Ignored by Resistances 23 | . . . . 23 Core Remaining (%) 100 | 100 . . . . Volleys Fired 93 | 13 23 13 26 18 Largest 2 | 2 2 2 2 2 Hottest 100 | 40 100 40 40 70 Shots Fired 149 | 26 36 25 31 31 Gun 119 | 26 27 24 12 30 Cannon 1 | . . . . 1 Launcher 20 | . . 1 19 . Special 9 | . 9 . . . Kinetic 105 | 26 21 24 12 22 Thermal 17 | . 9 . . 8 Explosive 20 | . . 1 19 . Electromagnetic 7 | . 6 . . 1 Robot Hit Streak 14 | 5 9 6 8 14 Robot Miss Streak 3 | 3 2 3 1 1 Penetration Max . | . . . . . Secondary Targets 1 | . 1 . . . Max Gunslinging Chain 1 | . 1 . . . Shots Hit Robots 84 | 15 18 14 11 26 Core Hits 46 | 8 9 8 13 8 Critical Kills . | . . . . . Critical Parts Destroyed . | . . . . . Critical Strikes 1 | . . . . 1 Burn 1 | . . . . 1 Melee Attacks . | . . . . . Impact . | . . . . . Slashing . | . . . . . Piercing . | . . . . . Sneak Attacks . | . . . . . Combat Hostiles . | . . . . . Follow-up Attacks . | . . . . . Damage Inflicted 1564 | 166 287 214 585 312 Guns 892 | 166 168 160 112 286 Cannons 26 | . . . . 26 Explosions 622 | . 95 54 473 . Melee . | . . . . . Ramming . | . . . . . Kinetic 709 | 166 104 160 112 167 Thermal 238 | . 119 . . 119 Explosive 527 | . . 54 473 . Electromagnetic 90 | . 64 . . 26 Impact . | . . . . . Slashing . | . . . . . Piercing . | . . . . . Highest Corruption . | . . . . . Average Corruption . | . . . . . Corruption Purged . | . . . . . Corruption Blocked . | . . . . . Overload Shots . | . . . . . Overflow Damage 84 | . 73 . 11 . Projectiles . | . . . . . Explosions 84 | . 73 . 11 . Melee . | . . . . . Knockbacks . | . . . . . Impact . | . . . . . Kinetic . | . . . . . Secondary . | . . . . . Self-Inflicted Damage 156 | . 101 23 32 . Shots 3 | . 1 1 1 . Rammed . | . . . . . Targets Rammed . | . . . . . Kicked . | . . . . . Crushed . | . . . . . Highest Temperature 153 | . 70 . . 153 Average Temperature 35 | . 18 . . 57 Received Heat Transfer 372 | . 30 . . 342 Siege Activations . | . . . . . Robots Corrupted . | . . . . . Combat Hostiles . | . . . . . Parts Fried . | . . . . . Impact Corruptions . | . . . . . Robots Melted . | . . . . . Combat Hostiles . | . . . . . Parts Melted 4 | . 1 . . 3 Heat Transferred 433 | . 100 . . 333 Parts Sabotaged . | . . . . . Parts Stolen . | . . . . . Parts Stripped . | . . . . . Power Chain Reactions . | . . . . . Alert | -11 -10 -10 -10 -7 ------- Run | Yrd Mat Min Sub Rec Peak Influence 198 | 20 198 91 . 173 Initial 172 | . 13 . . 172 Average 55 | 7 55 29 . 154 Maximum Alert Level . | . . . . . Low Security (%) 100 | 100 100 100 . 100 Level 1 . | . . . . . Level 2 . | . . . . . Level 3 . | . . . . . Level 4 . | . . . . . Level 5 . | . . . . . High Security . | . . . . . Max Security . | . . . . . Squads Dispatched 1 | . 1 . . . Investigation 1 | . 1 . . . Extermination . | . . . . . Reinforcement . | . . . . . Assault . | . . . . . Garrison . | . . . . . Intercept . | . . . . . Searches Triggered . | . . . . . Construction Impeded . | . . . . . Haulers Reinforced . | . . . . . Active Scanning Responses . | . . . . . Cargo Convoy Interrupts . | . . . . . Stealth | -11 -10 -10 -10 -7 --------- Run | Yrd Mat Min Sub Rec Distress Signals 1 | . 1 . . . Communications Jammed . | . . . . . Distress Signals . | . . . . . Times Spotted 31 | . 11 5 12 3 Peak Tracking Total 6 | . 5 3 6 2 Tactical Retreats 5 | . . . 5 . Traps | -11 -10 -10 -10 -7 ------- Run | Yrd Mat Min Sub Rec Traps Triggered 1 | . 1 . . . Indirectly . | . . . . . Trap Hack Attempts . | . . . . . Triggered . | . . . . . Disarmed . | . . . . . Reprogrammed . | . . . . . Reused . | . . . . . Traps Extracted . | . . . . . Installed 3 | . . . 3 . Triggered . | . . . . . Most Traps Carried 1 | . . . 1 . Machines | -11 -10 -10 -10 -7 ---------- Run | Yrd Mat Min Sub Rec Machines Disabled 5 | . 1 1 3 . Max in Single Turn 2 | . 1 1 2 . Machines Repaired . | . . . . . Machines Dismantled . | . . . . . Machines Sabotaged . | . . . . . Overloaded Fab Kills . | . . . . . Hacking | -11 -10 -10 -10 -7 --------- Run | Yrd Mat Min Sub Rec Machines Accessed 8 | . 5 . . 3 Terminals 8 | . 5 . . 3 Fabricators . | . . . . . Repair Stations . | . . . . . Recycling Units . | . . . . . Scanalyzers . | . . . . . Garrison Access . | . . . . . Total Hacks 26 | . 11 . . 15 Successful 16 | . 9 . . 7 Failed 10 | . 2 . . 8 Catastrophic 2 | . . . . 2 Database Lockouts . | . . . . . Manual 8 | . 3 . . 5 Terminals 26 | . 11 . . 15 Fabricators . | . . . . . Repair Stations . | . . . . . Recycling Units . | . . . . . Scanalyzers . | . . . . . Garrison Access . | . . . . . Terminal Hacks 12 | . 6 . . 6 Robot Analysis 1 | . 1 . . . Branch Access Points 2 | . 1 . . 1 Unreport Threat 1 | . 1 . . . Locate Traps 3 | . 2 . . 1 Hauler Manifests 2 | . 1 . . 1 Zone Layout 3 | . . . . 3 Fabricator Hacks . | . . . . . Repair Station Hacks . | . . . . . Recycling Unit Hacks . | . . . . . Scanalyzer . | . . . . . Garrison Access Hacks . | . . . . . Unauthorized Hacks 4 | . 3 . . 1 Terminals 4 | . 3 . . 1 Track 2 | . 2 . . . Botnet 2 | . 1 . . 1 Fabricators . | . . . . . Repair Stations . | . . . . . Recycling Units . | . . . . . Scanalyzers . | . . . . . Garrison Access . | . . . . . Data Cores Recovered . | . . . . . Used . | . . . . . Hacking Detections 8 | . 5 . . 3 Full Trace Events . | . . . . . Feedback Events . | . . . . . Feedback Blocked . | . . . . . Robot Schematics Acquired . | . . . . . Robots Built . | . . . . . Authchips . | . . . . . Time . | . . . . . Total Robot Build Rating . | . . . . . Part Schematics Acquired . | . . . . . Parts Built . | . . . . . Authchips . | . . . . . Time . | . . . . . Total Part Build Rating . | . . . . . Parts Repaired . | . . . . . Time . | . . . . . Parts Recycled . | . . . . . Recycled Matter . | . . . . . Retrieved Matter . | . . . . . Retrieved Components . | . . . . . Parts Scanalyzed . | . . . . . Part Schematics Acquired . | . . . . . Parts Damaged . | . . . . . Bothacking | -11 -10 -10 -10 -7 ------------ Run | Yrd Mat Min Sub Rec Used RIF Installer . | . . . . . Robots Hacked . | . . . . . Non-combat . | . . . . . Combat . | . . . . . Robot Hacks Applied . | . . . . . Relay Couplers Released . | . . . . . Fabnet Peak Effective % . | . . . . . Robots Rewired . | . . . . . Allies Hacked . | . . . . . Hacks Repelled . | . . . . . Allies | -11 -10 -10 -10 -7 -------- Run | Yrd Mat Min Sub Rec Total Allies 2 | . . 2 . . Largest Group 2 | . . 2 2 . Highest-Rated Group 52 | . . 48 52 . Highest-Rated Ally 31 | . . 31 31 . Total Orders . | . . . . . Ally Attacks 19 | . . . 19 . Total Damage 290 | . . . 290 . Kills 4 | . . . 4 . Allies Corrupted . | . . . . . Allies Melted . | . . . . . Intel | -11 -10 -10 -10 -7 ------- Run | Yrd Mat Min Sub Rec Robot Analysis Total 1 | . 1 . . . Derelict Logs Recovered 2 | . . 2 . . Drone Launches . | . . . . . Drone Recoveries . | . . . . . Exploration | -11 -10 -10 -10 -7 ------------- Run | Yrd Mat Min Sub Rec Turns Passed 4414 | 126 714 1435 1716 423 Spaces Moved 1987 | 88 354 566 669 310 Core 3 | 3 . . . . Treads 1366 | . 131 566 669 . Legs . | . . . . . Wheels 618 | 85 223 . . 310 Hover . | . . . . . Flight . | . . . . . Fastest Speed 50 | 50 80 240 160 110 Average Speed 193 | 78 147 240 232 110 Slowest Speed 240 | 80 240 240 240 110 Overloaded Moves . | . . . . . Propulsion Burnouts . | . . . . . Robots Hopped . | . . . . . Cave-ins Triggered . | . . . . . Exploration Rate (%) 52 | 6 60 100 29 66 Regions Visited 4 Branch Regions 3 Pre-discovered Areas 1 | . . 1 . . Known Exits Taken 1 | . 1 . . . Unknown Exits Taken 3 | 1 . 1 1 . Scrap Searched 4 | . . 1 3 . Spaces Dug 27 | . 6 . 21 . Terrain Destroyed 113 | . 55 6 52 . Melee . | . . . . . Projectile 7 | . 7 . . . AOE 106 | . 48 6 52 . Terrain Rammed . | . . . . . Walls Destroyed . | . . . . . Machines Disabled . | . . . . . Actions | -11 -10 -10 -10 -7 --------- Run | Yrd Mat Min Sub Rec Total 2394 | 117 490 619 806 362 Wait 206 | . 93 32 73 8 Move 1983 | 87 353 565 668 310 Hop . | . . . . . Pick Up 45 | 9 7 4 21 4 Fast Attach 11 | 7 . . 2 2 Attach 11 | . 3 . 1 7 Detach 1 | . . . . 1 Swap 24 | . 10 4 1 9 Drop 17 | 1 1 1 11 3 Fire 93 | 13 23 13 26 18 Melee . | . . . . . Ram . | . . . . . Kick . | . . . . . Crush . | . . . . . Escape Stasis . | . . . . . Rewire . | . . . . . Trap 3 | . . . 3 . Miscellaneous . | . . . . . Route ------- -11/Scrapyard -10/Materials (discovered 3 exits: [*Mat x2] / *Min) -10/Mines (discovered 3 exits: [*Mat x2] / [*Sub]) -10/Subcaves (discovered 2 exits: [*Mat] / *Rec) -7/Recycling History --------- Turn | Location | Event 12 | -11/Scrapyard | Discovered new exit (range 15) 127 | -11/Scrapyard | Entered Materials 165 | -10/Materials | Identified exit to Mines 292 | -10/Materials | Lost 3 parts (1p1n1w) 317 | -10/Materials | Build established: Mutant 337 | -10/Materials | Discovered new exit (range 15) 633 | -10/Materials | Discovered new exit (range 8) 841 | -10/Materials | Entered Mines 857 | -10/Mines | Met a Derelict bent on vengeance 1024 | -10/Mines | Learned location of Storage (-7) 1137 | -10/Mines | Discovered new exit (range 8) 1197 | -10/Mines | Learned Materials terminal intel 1469 | -10/Mines | Discovered new exit (range 8) 1548 | -10/Mines | Learned 4 Materials zone layouts 1910 | -10/Mines | Found a damaged Exp. Sensor Array with a note attached 1914 | -10/Mines | Found Prototype Device 2259 | -10/Mines | Discovered new exit (range 6) 2276 | -10/Mines | Entered Subcaves 2276 | -10/Subcaves | Accompanied by 2 allies 2281 | -10/Subcaves | Led the pair of lost Derelicts to an unsafe place 2315 | -10/Subcaves | Discovered new exit (range 13) 3807 | -10/Subcaves | Discovered new exit (range 12) 3992 | -10/Subcaves | Entered Recycling 4052 | -7/Recycling | Core integrity fell below 50% 4088 | -7/Recycling | Lost 4 parts (1p1n1u1w) 4189 | -7/Recycling | Found Powered Armor 4400 | -7/Recycling | Core integrity fell below 20% 4415 | -7/Recycling | Destroyed by Y-54 Guardian with Gatling Laser Last Messages --------------- Testing... Terminal linked with 0 systems. Awaiting botnet instructions. 04260_ Connecting with Terminal... >>Layout(Zone) Retrieving Zone 5W layout... Downloaded map data. 04348_ Acquired Reflective Plating. 04350_ Acquired 10 matter. 04357_ Dropped Lgt. Ion Engine. 04358_ Acquired Coolant Injector. 04372_ Dropped Mining Laser. 04372_ Acquired Flail. 04373_ R-06 Scavenger collects Mining Laser. 04388_ Y-54 Guardian springs to life. 04394_ Wheel destroyed. 04399_ Reflective Plating destroyed. 04409_ Powered Armor destroyed. 04413_ Lgt. Assault Rifle destroyed. 04413_ Weapon Cycler destroyed. Map ----- +----------------------------------------------------+ | ????????????????# "????????????????????????????? | | ????????????????# "????????????????????????????? | | ????????????????# "????????????????????????????? | | ????###?????????# ????????????????????????? | | #####T################+##????????????????????????? | | ????????????????????????? | | ????????????????????????? | | ????????????????????????? | | ###############????????????????????????? | | #??????????????????????????????????????? | | #??????????????????????????????????????? | | #??????????????????????????????????????? | | ######## ##??????????????????????????????????????? | | ???????# #???????????????????????????????????????? | | ???????# #???????????????????????????????????????? | | ??######+####????????????????????????????????????? | | ??# #????????????????????????????????????? | | ### "" #????????????????????????????????????? | | + """ T" #????????????????????????????????????? | | ### """ "" #????????????????????????????????????? | | ??# """ #????????????????????????????????????? | | ??# #????????????????????????????????????? | | ??# #??#########?????????????????????????? | | ??# #??#""##! #??##?????????????????????? | | ?######+########T"## !!###Y# #?????????????????? | | ?# @ Y #?????????????????? | | ?# r #?????????????????? | | ?# u r r #?????????????????? | | ?######+#########+########## #?????????????????? | | ### #?# #?????? #?????????????????? | | + #?# [ #??????? #?????????????????? | | ### #?#% #???????? #?????????????????? | | ??# ### #?????????#?????????????????? | | ??# ## #???????????????????????????? | | ??# ### #???????????????????????????? | | ### #?# ! !#???????????????????????????? | | + #?# % !%#???????????????????????????? | | ###### ######?# #???????????????????????????? | | #??###??????# = ! #???????????????????????????? | | #???????????# #???????????????????????????? | | #???????????# #???????????????????????????? | | #???????????#[ * #???????????????????????????? | | #???????????########???????????????????????????? | | #??????????????????????????????????????????????? | | ! #??????????????????????????????????????????????? | | ! #??????????????????????????????????????????????? | | % #??????????????????????????????????????????????? | | ###??????????????????????????????????????????????? | | ?????????????????????????????????????????????????? | | ?????????????????????????????????????????????????? | +----------------------------------------------------+ Best States ------------- Heat Dissipation 39 Energy Generation 18 Energy Capacity 290 Matter Stores 300 Matter Capacity 300 Sight Range 16 Terrain Scan Range 14 Terrain Scan Density 10 Armor Coverage 150 Resistance: TH 10 Weapon Cycling 15 Evasion (%) 44 Recoil Reduction 2 Item Schematics ----------------- None Robot Schematics ------------------ None Fabricated ------------ Nothing Alien Tech Used ----------------- None Achievements -------------- None Challenges ------------ None Game ------ Seed LargeShockStorm Manual? 0 Play Time 00:27:07 Cumulative 359.8 hours Start 2024.12.28 @ 14:12:36 End 2024.12.28 @ 14:40:29 Sessions 1 Manual Loads 0 Difficulty Rogue Special Mode None Game No. 150 Rogue 150 Adventurer 0 Explorer 0 Win Type - Total 12 Types 10/0/1/1/0/0/0/0/0 Lore% 58 Gallery% 77 Achievement% 67 Wizard Run 0 Options --------- Layout 0 ASCII 0 Keyboard 0 Movement Numpad Keybinds 0 Fullscreen 1 Font 24/Smallcaps Map View 76x50 Zoom Use 0% Tactical HUD 1 Map Filters NONE Filters NONE Steam 1 RUN: ab3cd487-24b4-44b8-9895-05a43a2f0b54